[Event "*** SCC Grand Prix: Titled Tuesday Blitz"]
[Site "Chess.com"]
[Date "2020.06.09"]
[Round "4"]
[White "bazar-wokzal"]
[Black "Gennady_Kozlov"]
[Result "1/2-1/2"]
[WhiteElo "2377"]
[BlackElo "2554"]
[TimeControl "180+1"]
[EndTime "9:39:38 PDT"]
[Termination "Game drawn by agreement"]

1. e4 {[%clk 0:03:00.2]} 1... e6 {[%clk 0:02:58.8]} 2. d4 {[%clk 0:03:00.3]}
2... d5 {[%clk 0:02:58.3]} 3. exd5 {[%clk 0:02:59.7]} 3... exd5 {[%clk
0:02:57.8]} 4. Nf3 {[%clk 0:03:00.3]} 4... Bd6 {[%clk 0:02:57.3]} 5. c4 {[%clk
0:02:59.9]} 5... c6 {[%clk 0:02:56.8]} 6. Bd3 {[%clk 0:02:59.2]} 6... Ne7 {[%clk
0:02:55.4]} 7. O-O {[%clk 0:02:58.2]} 7... O-O {[%clk 0:02:55.2]} 8. Nc3 {[%clk
0:02:58.5]} 8... Bf5 {[%clk 0:02:54]} 9. Be2 {[%clk 0:02:55.7]} 9... Nd7 {[%clk
0:02:52.3]} 10. Qb3 {[%clk 0:02:53.9]} 10... Qb6 {[%clk 0:02:45.3]} 11. c5
{[%clk 0:02:53.3]} 11... Qxb3 {[%clk 0:02:44.8]} 12. axb3 {[%clk 0:02:53.9]}
12... Bc7 {[%clk 0:02:44.4]} 13. b4 {[%clk 0:02:54.1]} 13... a6 {[%clk
0:02:43.3]} 14. Re1 {[%clk 0:02:53.7]} 14... Ng6 {[%clk 0:02:39.4]} 15. Bd2
{[%clk 0:02:38]} 15... Rfe8 {[%clk 0:02:37.8]} 16. h3 {[%clk 0:02:28.9]} 16...
Bf4 {[%clk 0:02:29.3]} 17. Bf1 {[%clk 0:02:17.7]} 17... Bxd2 {[%clk 0:02:27.2]}
18. Nxd2 {[%clk 0:02:17.3]} 18... Nf4 {[%clk 0:02:27.2]} 19. g3 {[%clk
0:02:16.4]} 19... Nxh3+ {[%clk 0:02:24.1]} 20. Bxh3 {[%clk 0:02:01.6]} 20...
Bxh3 {[%clk 0:02:25]} 21. Nb3 {[%clk 0:02:01.7]} 21... Be6 {[%clk 0:02:03]} 22.
Na5 {[%clk 0:02:01.1]} 22... Rab8 {[%clk 0:02:03]} 23. Ne2 {[%clk 0:01:55.3]}
23... g5 {[%clk 0:02:01.5]} 24. f3 {[%clk 0:01:53.2]} 24... Nf8 {[%clk
0:01:59.7]} 25. Kf2 {[%clk 0:01:52.7]} 25... Re7 {[%clk 0:01:58.2]} 26. Nc1
{[%clk 0:01:48.6]} 26... Rbe8 {[%clk 0:01:56.8]} 27. Nd3 {[%clk 0:01:47.7]}
27... Bf5 {[%clk 0:01:55.4]} 28. Rxe7 {[%clk 0:01:40.9]} 28... Rxe7 {[%clk
0:01:54.7]} 29. Ne5 {[%clk 0:01:41.4]} 29... f6 {[%clk 0:01:52.3]} 30. Nexc6
{[%clk 0:01:39.6]} 30... bxc6 {[%clk 0:01:51.3]} 31. Nxc6 {[%clk 0:01:39.8]}
31... Rc7 {[%clk 0:01:50.6]} 32. Rxa6 {[%clk 0:01:39.5]} 32... Bd3 {[%clk
0:01:50.1]} 33. Rb6 {[%clk 0:01:34.6]} 33... Kf7 {[%clk 0:01:32.8]} 34. Na5
{[%clk 0:01:27.6]} 34... Ne6 {[%clk 0:01:24.4]} 35. Ke3 {[%clk 0:01:24.3]} 35...
Bc2 {[%clk 0:01:24.2]} 36. b5 {[%clk 0:01:20.2]} 36... f5 {[%clk 0:01:22.1]} 37.
f4 {[%clk 0:01:13.6]} 37... gxf4+ {[%clk 0:01:21.1]} 38. gxf4 {[%clk 0:01:13.8]}
38... h5 {[%clk 0:01:16.9]} 39. Nc6 {[%clk 0:01:13.4]} 39... h4 {[%clk
0:01:15.6]} 40. Ne5+ {[%clk 0:01:13.3]} 40... Kf6 {[%clk 0:01:14.2]} 41. c6
{[%clk 0:01:08.1]} 41... h3 {[%clk 0:01:12.4]} 42. Nf3 {[%clk 0:01:06.7]} 42...
Be4 {[%clk 0:01:10.3]} 43. Rb7 {[%clk 0:01:04.4]} 43... Bxf3 {[%clk 0:01:09.5]}
44. Kxf3 {[%clk 0:01:04.1]} 44... Nxd4+ {[%clk 0:01:09]} 45. Kg3 {[%clk
0:01:03.6]} 45... Nxb5 {[%clk 0:01:03.1]} 46. Rxb5 {[%clk 0:01:02.3]} 46... Rxc6
{[%clk 0:01:01.2]} 47. Rxd5 {[%clk 0:01:02]} 47... Rc2 {[%clk 0:01:00.4]} 48.
Kxh3 {[%clk 0:00:57.6]} 48... Rxb2 {[%clk 0:01:00.2]} 49. Rd6+ {[%clk
0:00:57.5]} 49... Ke7 {[%clk 0:00:59.4]} 50. Ra6 {[%clk 0:00:57.3]} 50... Rb4
{[%clk 0:00:56.8]} 51. Kg3 {[%clk 0:00:57]} 51... Re4 {[%clk 0:00:56.3]} 52. Rb6
{[%clk 0:00:54.5]} 52... Kf7 {[%clk 0:00:56]} 53. Ra6 {[%clk 0:00:53.9]} 53...
Re6 {[%clk 0:00:51.7]} 54. Ra8 {[%clk 0:00:43.4]} 54... Rg6+ {[%clk 0:00:49.2]}
55. Kf3 {[%clk 0:00:42.3]} 55... Rb6 {[%clk 0:00:48.7]} 56. Kg3 {[%clk
0:00:40.8]} 56... Kg6 {[%clk 0:00:48.1]} 57. Rg8+ {[%clk 0:00:38]} 57... Kf6
{[%clk 0:00:47.9]} 58. Rf8+ {[%clk 0:00:37.3]} 58... Ke6 {[%clk 0:00:47.8]} 59.
Re8+ {[%clk 0:00:33.7]} 59... Kf7 {[%clk 0:00:47.4]} 60. Ra8 {[%clk 0:00:30.9]}
1/2-1/2

[Event "*** SCC Grand Prix: Titled Tuesday Blitz"]
[Site "Chess.com"]
[Date "2020.06.09"]
[Round "4"]
[White "bulletteemo"]
[Black "GrigorGrigorov"]
[Result "0-1"]
[WhiteElo "2532"]
[BlackElo "2734"]
[TimeControl "180+1"]
[EndTime "9:39:42 PDT"]
[Termination "GrigorGrigorov won by resignation"]

1. e4 {[%clk 0:03:00.9]} 1... c6 {[%clk 0:02:57]} 2. Nc3 {[%clk 0:03:00.2]} 2...
d5 {[%clk 0:02:56.9]} 3. Nf3 {[%clk 0:03:00.5]} 3... dxe4 {[%clk 0:02:56.9]} 4.
Nxe4 {[%clk 0:03:01.4]} 4... Nf6 {[%clk 0:02:56.8]} 5. Qe2 {[%clk 0:03:01.4]}
5... Nxe4 {[%clk 0:02:56.1]} 6. Qxe4 {[%clk 0:03:02.3]} 6... Be6 {[%clk
0:02:56.1]} 7. d4 {[%clk 0:03:01.9]} 7... Bd5 {[%clk 0:02:53.3]} 8. Qf4 {[%clk
0:03:01.7]} 8... Bxf3 {[%clk 0:02:52.7]} 9. Qxf3 {[%clk 0:03:01.3]} 9... Qxd4
{[%clk 0:02:51.5]} 10. Bd3 {[%clk 0:03:00.7]} 10... Nd7 {[%clk 0:02:45.9]} 11.
Be3 {[%clk 0:02:54.7]} 11... Qb4+ {[%clk 0:02:25]} 12. Bd2 {[%clk 0:02:52.1]}
12... Qxb2 {[%clk 0:02:15.8]} 13. O-O {[%clk 0:02:46.5]} 13... Ne5 {[%clk
0:02:16.1]} 14. Qe4 {[%clk 0:02:44.1]} 14... Nxd3 {[%clk 0:02:15.7]} 15. Qxd3
{[%clk 0:02:44.7]} 15... Rd8 {[%clk 0:02:13.5]} 16. Qe3 {[%clk 0:02:41.5]} 16...
Qd4 {[%clk 0:02:11.1]} 17. Qxd4 {[%clk 0:02:40.9]} 17... Rxd4 {[%clk 0:02:10.3]}
18. Be3 {[%clk 0:02:41.8]} 18... Rd7 {[%clk 0:02:05.2]} 19. Bxa7 {[%clk
0:02:40.7]} 19... e6 {[%clk 0:02:04.7]} 20. Rfd1 {[%clk 0:02:40.1]} 20... Be7
{[%clk 0:02:00.4]} 21. Bb6 {[%clk 0:02:38.7]} 21... f6 {[%clk 0:01:57.5]} 22. a4
{[%clk 0:02:37.6]} 22... Bd8 {[%clk 0:01:53]} 23. Rxd7 {[%clk 0:02:31.7]} 23...
Kxd7 {[%clk 0:01:52.3]} 24. Rd1+ {[%clk 0:02:32.4]} 24... Kc8 {[%clk 0:01:52.6]}
25. Bc5 {[%clk 0:02:31.7]} 25... Bc7 {[%clk 0:01:50.1]} 26. Kf1 {[%clk 0:02:25]}
26... Rd8 {[%clk 0:01:46.7]} 27. Rxd8+ {[%clk 0:02:21]} 27... Kxd8 {[%clk
0:01:46.7]} 28. Ke2 {[%clk 0:02:21.2]} 28... Kd7 {[%clk 0:01:44.3]} 29. Kd3
{[%clk 0:02:21.2]} 29... h5 {[%clk 0:01:30.4]} 30. g3 {[%clk 0:02:18.1]} 30...
g5 {[%clk 0:01:28.1]} 31. h3 {[%clk 0:02:07.5]} 31... f5 {[%clk 0:01:25.9]} 32.
Be3 {[%clk 0:01:56.4]} 32... g4 {[%clk 0:01:24.4]} 33. hxg4 {[%clk 0:01:43.8]}
33... hxg4 {[%clk 0:01:24]} 34. Kc4 {[%clk 0:01:42.8]} 34... Bd6 {[%clk
0:01:21.4]} 35. a5 {[%clk 0:01:39.3]} 35... e5 {[%clk 0:01:18.2]} 36. c3 {[%clk
0:01:13.6]} 36... Ke6 {[%clk 0:01:17.4]} 37. Bg5 {[%clk 0:01:05.5]} 37... Bc7
{[%clk 0:01:10.3]} 38. Kb4 {[%clk 0:00:51.2]} 38... Kd5 {[%clk 0:01:09.9]} 39.
c4+ {[%clk 0:00:30.9]} 39... Ke4 {[%clk 0:01:09.9]} 40. a6 {[%clk 0:00:28.4]}
40... bxa6 {[%clk 0:01:09.7]} 41. Kc5 {[%clk 0:00:27.5]} 41... Ba5 {[%clk
0:01:06.4]} 42. Kxc6 {[%clk 0:00:25.5]} 42... Be1 {[%clk 0:01:06.1]} 43. Be3
{[%clk 0:00:24.6]} 43... f4 {[%clk 0:01:02.5]} 44. gxf4 {[%clk 0:00:24.4]} 44...
exf4 {[%clk 0:01:02.7]} 45. Bb6 {[%clk 0:00:16.8]} 45... g3 {[%clk 0:00:54.7]}
46. fxg3 {[%clk 0:00:16.5]} 46... fxg3 {[%clk 0:00:55.6]} 47. Kb7 {[%clk
0:00:14.7]} 47... Bf2 {[%clk 0:00:54.4]} 48. Bc7 {[%clk 0:00:14]} 48... g2
{[%clk 0:00:54.4]} 49. Bh2 {[%clk 0:00:13.6]} 49... a5 {[%clk 0:00:53.2]} 50.
Kc6 {[%clk 0:00:02.4]} 50... a4 {[%clk 0:00:52.8]} 51. c5 {[%clk 0:00:02.9]}
51... Bxc5 {[%clk 0:00:52.2]} 52. Kxc5 {[%clk 0:00:02.8]} 52... a3 {[%clk
0:00:52.6]} 53. Bg1 {[%clk 0:00:01.8]} 53... a2 {[%clk 0:00:52.6]} 54. Bd4
{[%clk 0:00:02.7]} 54... a1=Q {[%clk 0:00:52.8]} 55. Bxa1 {[%clk 0:00:02.7]}
55... g1=Q+ {[%clk 0:00:52.9]} 0-1

[Event "*** SCC Grand Prix: Titled Tuesday Blitz"]
[Site "Chess.com"]
[Date "2020.06.09"]
[Round "4"]
[White "gross-aleks"]
[Black "Oleksandr_Bortnyk"]
[Result "0-1"]
[WhiteElo "2595"]
[BlackElo "2952"]
[TimeControl "180+1"]
[EndTime "9:39:44 PDT"]
[Termination "Oleksandr_Bortnyk won by resignation"]

1. c4 {[%clk 0:03:00.9]} 1... d6 {[%clk 0:02:59]} 2. g3 {[%clk 0:03:00.2]} 2...
e5 {[%clk 0:02:54.1]} 3. Bg2 {[%clk 0:03:00.3]} 3... g6 {[%clk 0:02:54.2]} 4.
Nc3 {[%clk 0:03:00.3]} 4... Bg7 {[%clk 0:02:54.4]} 5. d3 {[%clk 0:03:00.2]} 5...
f5 {[%clk 0:02:54.2]} 6. e4 {[%clk 0:02:59.1]} 6... Nc6 {[%clk 0:02:51.2]} 7.
Nge2 {[%clk 0:02:59]} 7... Nf6 {[%clk 0:02:46.1]} 8. O-O {[%clk 0:02:58.7]} 8...
O-O {[%clk 0:02:41.1]} 9. Nd5 {[%clk 0:02:58.3]} 9... f4 {[%clk 0:02:17.6]} 10.
gxf4 {[%clk 0:02:55.7]} 10... Nh5 {[%clk 0:02:17.9]} 11. f5 {[%clk 0:02:47.6]}
11... gxf5 {[%clk 0:02:15]} 12. Ng3 {[%clk 0:02:47]} 12... Nf4 {[%clk
0:01:53.9]} 13. exf5 {[%clk 0:02:40.8]} 13... Nxg2 {[%clk 0:01:51.7]} 14. Kxg2
{[%clk 0:02:28.4]} 14... Bxf5 {[%clk 0:01:43.7]} 15. Nxf5 {[%clk 0:02:22]} 15...
Rxf5 {[%clk 0:01:42.9]} 16. Qg4 {[%clk 0:02:18.8]} 16... Nd4 {[%clk 0:01:27]}
17. Be3 {[%clk 0:02:17.8]} 17... c6 {[%clk 0:01:14.7]} 18. Kh1 {[%clk
0:02:16.6]} 18... cxd5 {[%clk 0:00:52.7]} 19. Bxd4 {[%clk 0:02:16]} 19... Qd7
{[%clk 0:00:43.9]} 20. Be3 {[%clk 0:02:02.8]} 20... dxc4 {[%clk 0:00:43.4]} 21.
dxc4 {[%clk 0:02:00.6]} 21... Kh8 {[%clk 0:00:42.4]} 22. Qe4 {[%clk 0:01:50.1]}
22... Raf8 {[%clk 0:00:37.7]} 23. Rg1 {[%clk 0:01:49.6]} 23... Qc6 {[%clk
0:00:16.6]} 24. Qxc6 {[%clk 0:01:47.8]} 24... bxc6 {[%clk 0:00:17.5]} 25. Rad1
{[%clk 0:01:47.7]} 25... Rd8 {[%clk 0:00:17.5]} 26. b4 {[%clk 0:01:32.1]} 26...
d5 {[%clk 0:00:17.3]} 27. cxd5 {[%clk 0:01:28.5]} 27... cxd5 {[%clk 0:00:18.2]}
28. Bxa7 {[%clk 0:01:28.3]} 28... d4 {[%clk 0:00:18.8]} 29. b5 {[%clk
0:01:25.6]} 29... Rxf2 {[%clk 0:00:18]} 30. Rg2 {[%clk 0:01:25.4]} 30... Rf7
{[%clk 0:00:16.3]} 31. b6 {[%clk 0:01:23.2]} 31... e4 {[%clk 0:00:16.7]} 32. Re2
{[%clk 0:01:11.4]} 32... Re7 {[%clk 0:00:10.4]} 33. a4 {[%clk 0:01:02.5]} 33...
d3 {[%clk 0:00:10.6]} 34. Re3 {[%clk 0:01:02.3]} 34... Bh6 {[%clk 0:00:07.3]}
35. Ree1 {[%clk 0:00:21.6]} 35... Rd5 {[%clk 0:00:07.3]} 36. Rxe4 {[%clk
0:00:17.7]} 36... Rxe4 {[%clk 0:00:08.2]} 37. b7 {[%clk 0:00:18.3]} 37... Bf4
{[%clk 0:00:08.7]} 38. b8=Q+ {[%clk 0:00:14.7]} 38... Bxb8 {[%clk 0:00:08.7]}
39. Bxb8 {[%clk 0:00:15.6]} 39... d2 {[%clk 0:00:09.2]} 40. Kg2 {[%clk
0:00:14.3]} 40... Re1 {[%clk 0:00:07.8]} 41. Be5+ {[%clk 0:00:15.1]} 41... Rdxe5
{[%clk 0:00:05.1]} 42. Rxd2 {[%clk 0:00:15.7]} 42... R5e2+ {[%clk 0:00:05.2]}
43. Rxe2 {[%clk 0:00:16]} 43... Rxe2+ {[%clk 0:00:06.1]} 0-1

[Event "*** SCC Grand Prix: Titled Tuesday Blitz"]
[Site "Chess.com"]
[Date "2020.06.09"]
[Round "4"]
[White "Love_craft"]
[Black "Manukyan_Artak"]
[Result "0-1"]
[WhiteElo "2425"]
[BlackElo "2300"]
[TimeControl "180+1"]
[EndTime "9:39:44 PDT"]
[Termination "Manukyan_Artak won by resignation"]

1. Nf3 {[%clk 0:03:00.9]} 1... Nf6 {[%clk 0:02:58.8]} 2. g3 {[%clk 0:03:01]}
2... g6 {[%clk 0:02:59.7]} 3. Bg2 {[%clk 0:03:01.3]} 3... Bg7 {[%clk 0:03:00.2]}
4. O-O {[%clk 0:03:02.2]} 4... O-O {[%clk 0:03:00.3]} 5. d4 {[%clk 0:03:03.1]}
5... d6 {[%clk 0:02:59.1]} 6. c4 {[%clk 0:03:03.5]} 6... c6 {[%clk 0:02:55.9]}
7. Nc3 {[%clk 0:03:02.5]} 7... Nbd7 {[%clk 0:02:56]} 8. e4 {[%clk 0:03:02.9]}
8... e5 {[%clk 0:02:55.6]} 9. d5 {[%clk 0:03:03.5]} 9... cxd5 {[%clk 0:02:54.9]}
10. cxd5 {[%clk 0:03:04.4]} 10... Nc5 {[%clk 0:02:55]} 11. Ne1 {[%clk
0:03:04.7]} 11... a5 {[%clk 0:02:55.1]} 12. Nd3 {[%clk 0:03:04.5]} 12... b6
{[%clk 0:02:54.6]} 13. Nxc5 {[%clk 0:03:02.4]} 13... bxc5 {[%clk 0:02:54.7]} 14.
Re1 {[%clk 0:02:58.2]} 14... h5 {[%clk 0:02:53.9]} 15. h4 {[%clk 0:02:57.2]}
15... Ng4 {[%clk 0:02:49.7]} 16. f3 {[%clk 0:02:48.9]} 16... Nh6 {[%clk
0:02:45]} 17. Bg5 {[%clk 0:02:42]} 17... f6 {[%clk 0:02:44.4]} 18. Be3 {[%clk
0:02:42.1]} 18... Kh7 {[%clk 0:02:40.7]} 19. Qd2 {[%clk 0:02:28.4]} 19... f5
{[%clk 0:02:39.4]} 20. Bg5 {[%clk 0:01:33.3]} 20... Qb6 {[%clk 0:02:17.8]} 21.
Kh2 {[%clk 0:01:08.1]} 21... a4 {[%clk 0:02:07.8]} 22. Rab1 {[%clk 0:01:07.2]}
22... Nf7 {[%clk 0:01:54.3]} 23. Be3 {[%clk 0:01:03.8]} 23... Bh6 {[%clk
0:01:51.7]} 24. Nd1 {[%clk 0:00:42.4]} 24... fxe4 {[%clk 0:01:40.1]} 25. fxe4
{[%clk 0:00:34.9]} 25... Bg4 {[%clk 0:01:36.2]} 26. Nf2 {[%clk 0:00:31.3]} 26...
Bxe3 {[%clk 0:01:33.6]} 27. Rxe3 {[%clk 0:00:32.2]} 27... Nh6 {[%clk 0:01:34.2]}
28. Bh3 {[%clk 0:00:16.5]} 28... Bxh3 {[%clk 0:01:32.7]} 29. Kxh3 {[%clk
0:00:16.2]} 29... Rf6 {[%clk 0:01:21.7]} 30. Kg2 {[%clk 0:00:16.4]} 30... Raf8
{[%clk 0:01:20.9]} 31. Nh3 {[%clk 0:00:16.6]} 31... Ng4 {[%clk 0:01:19]} 32. Rf3
{[%clk 0:00:13.4]} 32... Rxf3 {[%clk 0:01:15.4]} 33. Ng5+ {[%clk 0:00:13.6]}
33... Kg7 {[%clk 0:01:15.9]} 34. Nxf3 {[%clk 0:00:14.5]} 34... c4 {[%clk
0:01:15.5]} 35. Re1 {[%clk 0:00:13.8]} 35... a3 {[%clk 0:00:58.9]} 36. bxa3
{[%clk 0:00:13.7]} 36... Qc5 {[%clk 0:00:59.2]} 37. Re2 {[%clk 0:00:13.8]} 37...
Qxa3 {[%clk 0:00:57]} 38. Ng5 {[%clk 0:00:14.2]} 38... Rf6 {[%clk 0:00:49]} 39.
Ne6+ {[%clk 0:00:13.7]} 39... Kh7 {[%clk 0:00:48]} 40. Ng5+ {[%clk 0:00:13.7]}
40... Kg8 {[%clk 0:00:47.2]} 41. Qb2 {[%clk 0:00:09.8]} 41... Qxb2 {[%clk
0:00:46.1]} 42. Rxb2 {[%clk 0:00:10.7]} 42... c3 {[%clk 0:00:45.1]} 43. Rb8+
{[%clk 0:00:10.2]} 43... Rf8 {[%clk 0:00:44.5]} 44. Rb1 {[%clk 0:00:01.8]} 44...
Rf2+ {[%clk 0:00:40.3]} 45. Kg1 {[%clk 0:00:01.7]} 45... Rb2 {[%clk 0:00:40]}
46. Rc1 {[%clk 0:00:01.6]} 46... c2 {[%clk 0:00:40.2]} 47. Kf1 {[%clk
0:00:01.6]} 47... Rb1 {[%clk 0:00:40.6]} 48. Ke2 {[%clk 0:00:01.7]} 48... Rxc1
{[%clk 0:00:40.7]} 0-1

[Event "*** SCC Grand Prix: Titled Tuesday Blitz"]
[Site "Chess.com"]
[Date "2020.06.09"]
[Round "4"]
[White "robertofabregas"]
[Black "DishonorOnYourCow"]
[Result "1-0"]
[WhiteElo "2111"]
[BlackElo "2276"]
[TimeControl "180+1"]
[EndTime "9:39:45 PDT"]
[Termination "robertofabregas won by resignation"]

1. d4 {[%clk 0:02:59]} 1... Nf6 {[%clk 0:02:58.4]} 2. Bf4 {[%clk 0:02:58.7]}
2... g6 {[%clk 0:02:58.6]} 3. e3 {[%clk 0:02:59.1]} 3... d5 {[%clk 0:02:59]} 4.
Nf3 {[%clk 0:02:58.9]} 4... Bg7 {[%clk 0:02:59.5]} 5. c3 {[%clk 0:02:58.7]} 5...
O-O {[%clk 0:03:00.1]} 6. Nbd2 {[%clk 0:02:58.3]} 6... c5 {[%clk 0:03:00.6]} 7.
Be2 {[%clk 0:02:57.7]} 7... b6 {[%clk 0:03:01.1]} 8. h4 {[%clk 0:02:58.1]} 8...
Bb7 {[%clk 0:03:01.7]} 9. O-O {[%clk 0:02:58.7]} 9... Nc6 {[%clk 0:03:01.4]} 10.
a4 {[%clk 0:02:58.1]} 10... Re8 {[%clk 0:03:00.2]} 11. Ne5 {[%clk 0:02:55.6]}
11... h5 {[%clk 0:02:54.9]} 12. Kh1 {[%clk 0:02:50.1]} 12... Nd7 {[%clk
0:02:52]} 13. Nef3 {[%clk 0:02:35]} 13... e5 {[%clk 0:02:50.1]} 14. dxe5 {[%clk
0:02:32.2]} 14... Ndxe5 {[%clk 0:02:50.1]} 15. Nxe5 {[%clk 0:02:32.2]} 15...
Qxh4+ {[%clk 0:02:49.4]} 16. Kg1 {[%clk 0:02:27]} 16... Nxe5 {[%clk 0:02:48.9]}
17. Bxe5 {[%clk 0:02:24.9]} 17... Bxe5 {[%clk 0:02:47.6]} 18. Nf3 {[%clk
0:02:25.5]} 18... Qe7 {[%clk 0:02:46.2]} 19. Nxe5 {[%clk 0:02:25.2]} 19... Qxe5
{[%clk 0:02:46.3]} 20. Bf3 {[%clk 0:02:25.8]} 20... Rad8 {[%clk 0:02:44.1]} 21.
Qc2 {[%clk 0:02:23.5]} 21... Qc7 {[%clk 0:02:43.7]} 22. Rad1 {[%clk 0:02:22.2]}
22... Bc6 {[%clk 0:02:10.7]} 23. Rfe1 {[%clk 0:02:10]} 23... Qd7 {[%clk
0:02:08]} 24. b3 {[%clk 0:01:49.9]} 24... c4 {[%clk 0:02:06.3]} 25. Ra1 {[%clk
0:01:44]} 25... Qe6 {[%clk 0:01:49.8]} 26. b4 {[%clk 0:01:31.2]} 26... h4 {[%clk
0:01:49.1]} 27. b5 {[%clk 0:01:12.5]} 27... Bb7 {[%clk 0:01:38.5]} 28. Rad1
{[%clk 0:01:13.3]} 28... g5 {[%clk 0:01:37.1]} 29. Rd4 {[%clk 0:01:13]} 29...
Kg7 {[%clk 0:01:30.8]} 30. Red1 {[%clk 0:01:03.4]} 30... Rd6 {[%clk 0:00:49.5]}
31. Bg4 {[%clk 0:01:01.4]} 31... Qg6 {[%clk 0:00:44.9]} 32. Bf5 {[%clk
0:00:59.3]} 32... Qf6 {[%clk 0:00:41.9]} 33. Bh3 {[%clk 0:00:40.5]} 33... Bc8
{[%clk 0:00:36]} 34. Bg4 {[%clk 0:00:34.7]} 34... Bxg4 {[%clk 0:00:22.3]} 35.
Rxg4 {[%clk 0:00:35.6]} 35... Qh6 {[%clk 0:00:18.7]} 36. Qf5 {[%clk 0:00:30]}
36... f6 {[%clk 0:00:13.1]} 37. Rxd5 {[%clk 0:00:22.7]} 37... Rd7 {[%clk
0:00:12.4]} 38. Rxd7+ {[%clk 0:00:22.1]} 38... Kg8 {[%clk 0:00:12.6]} 39. Qd5+
{[%clk 0:00:21.1]} 39... Kh8 {[%clk 0:00:12.1]} 40. Qf7 {[%clk 0:00:19.5]} 40...
Rg8 {[%clk 0:00:11.8]} 41. Rd6 {[%clk 0:00:17.4]} 41... Rg6 {[%clk 0:00:11.2]}
42. Rd8+ {[%clk 0:00:16.6]} 1-0

[Event "*** SCC Grand Prix: Titled Tuesday Blitz"]
[Site "Chess.com"]
[Date "2020.06.09"]
[Round "4"]
[White "volcanoexplorer"]
[Black "Sanan_Sjugirov"]
[Result "0-1"]
[WhiteElo "2549"]
[BlackElo "2777"]
[TimeControl "180+1"]
[EndTime "9:39:46 PDT"]
[Termination "Sanan_Sjugirov won by resignation"]

1. e4 {[%clk 0:03:00.9]} 1... c5 {[%clk 0:02:59.7]} 2. Nf3 {[%clk 0:03:00.9]}
2... Nc6 {[%clk 0:02:59.6]} 3. d4 {[%clk 0:03:01.5]} 3... cxd4 {[%clk
0:02:59.6]} 4. Nxd4 {[%clk 0:03:02.4]} 4... Nf6 {[%clk 0:02:59.9]} 5. Nc3 {[%clk
0:03:02.9]} 5... d6 {[%clk 0:03:00.4]} 6. Bg5 {[%clk 0:03:02.3]} 6... e6 {[%clk
0:03:00.1]} 7. Qd2 {[%clk 0:03:02.3]} 7... a6 {[%clk 0:02:59.4]} 8. O-O-O {[%clk
0:03:00]} 8... Bd7 {[%clk 0:02:59.8]} 9. f4 {[%clk 0:02:58.2]} 9... Be7 {[%clk
0:02:59.2]} 10. Be2 {[%clk 0:02:55.8]} 10... h6 {[%clk 0:02:46.3]} 11. Bh4
{[%clk 0:02:55.4]} 11... b5 {[%clk 0:02:33.4]} 12. Bf3 {[%clk 0:02:34.4]} 12...
Rc8 {[%clk 0:02:13.8]} 13. Nxc6 {[%clk 0:01:45.5]} 13... Bxc6 {[%clk 0:02:13.1]}
14. Bxf6 {[%clk 0:01:13.6]} 14... gxf6 {[%clk 0:01:49.2]} 15. f5 {[%clk
0:01:08]} 15... h5 {[%clk 0:01:36.4]} 16. fxe6 {[%clk 0:00:58.4]} 16... fxe6
{[%clk 0:01:37.3]} 17. Qe2 {[%clk 0:00:58.7]} 17... b4 {[%clk 0:01:23.6]} 18.
Bxh5+ {[%clk 0:00:46.1]} 18... Kf8 {[%clk 0:01:23.1]} 19. Nd5 {[%clk 0:00:28.2]}
19... exd5 {[%clk 0:01:19.5]} 20. exd5 {[%clk 0:00:29.1]} 20... Bb5 {[%clk
0:01:09.8]} 21. Qf3 {[%clk 0:00:23.8]} 21... Be8 {[%clk 0:01:02]} 22. Bg4 {[%clk
0:00:17.7]} 22... Rc4 {[%clk 0:00:57]} 23. Bf5 {[%clk 0:00:17.6]} 23... Bd7
{[%clk 0:00:51.5]} 24. Bd3 {[%clk 0:00:17]} 24... Rch4 {[%clk 0:00:46.3]} 25.
Qg3 {[%clk 0:00:06.3]} 25... Bb5 {[%clk 0:00:27.6]} 26. Bf5 {[%clk 0:00:04]}
26... R4h5 {[%clk 0:00:24.9]} 27. Qf2 {[%clk 0:00:01.8]} 27... Bd7 {[%clk
0:00:19]} 28. g4 {[%clk 0:00:01.7]} 28... Bxf5 {[%clk 0:00:16.4]} 29. gxh5
{[%clk 0:00:01.9]} 29... Rxh5 {[%clk 0:00:17.1]} 30. Rhg1 {[%clk 0:00:02.3]}
30... Qc8 {[%clk 0:00:16.3]} 31. Rd2 {[%clk 0:00:02.4]} 31... Kf7 {[%clk
0:00:15.6]} 32. h4 {[%clk 0:00:02.9]} 32... Bf8 {[%clk 0:00:09.5]} 33. Re2
{[%clk 0:00:03.4]} 33... Qc4 {[%clk 0:00:08.4]} 34. Qg3 {[%clk 0:00:03.4]} 34...
Bh6+ {[%clk 0:00:06.5]} 35. Kb1 {[%clk 0:00:03.4]} 35... Bh7 {[%clk 0:00:07.4]}
36. Qh3 {[%clk 0:00:02.9]} 36... Qxe2 {[%clk 0:00:06.9]} 37. Qd7+ {[%clk
0:00:03.3]} 37... Qe7 {[%clk 0:00:07.1]} 38. Qg4 {[%clk 0:00:03.7]} 38... Re5
{[%clk 0:00:06.9]} 39. b3 {[%clk 0:00:03.9]} 39... Re1+ {[%clk 0:00:06.9]} 40.
Kb2 {[%clk 0:00:04.6]} 40... Qe5+ {[%clk 0:00:06.9]} 0-1